Cogmind - Beta 9.6 @@@ ROGUE MODE // 2020.04.18 @ 20:35:08 Player: ptdel Result: Destroyed by exploding Nuclear Reactor Performance ------------- Evolutions (1) 500 Regions Visited (2) 400 Robots Destroyed (37) 185 Value Destroyed (865) 865 Prototype IDs (3) 60 Alien Tech Used (0) 0 Bonus (0) 0 TOTAL SCORE: 2010 Bonus ------- None Cogmind --------- Core Integrity 0/400 Matter 250/300 Energy 100/100 System Corruption 0% Temperature Cool (454) Movement Core (650) Ox12 Location -9/Materials Parts ------- > --- POWER (1) -------- (None) > --- PROPULSION (2) --- Armored Treads > --- UTILITY (4) ------ Large Storage Unit Large Storage Unit Structural Scanner Utility Shielding > --- WEAPON (2) ------- Grenade Launcher > --- INVENTORY (16) --- Light Nuclear Core Armored Treads Armored Treads Flight Unit Flight Unit Sensor Array Signal Interpreter Improved Terrain Scanner Improved Terrain Scanner Utility Shielding Light EM Pulse Cannon Beam Cannon Datajack Welding Torch Mining Claw Peak State ------------ > --- POWER ------------ Improved Ion Engine > --- PROPULSION ------- Armored Treads Armored Treads > --- UTILITY ---------- Large Storage Unit Large Storage Unit Structural Scanner Utility Shielding > --- WEAPON ----------- Electrolaser Electrolaser > --- INVENTORY -------- Light Nuclear Core Armored Treads Armored Treads Wheel Flight Unit Sensor Array Signal Interpreter Improved Terrain Scanner Improved Terrain Scanner Utility Shielding Light EM Pulse Cannon Beam Cannon Grenade Launcher Welding Torch Mining Claw [Rating: 20] Favorites ----------- Power Improved Ion Engine Engine Improved Ion Engine Propulsion Light Treads Treads Light Treads Utility Large Storage Unit Device Structural Scanner Storage Large Storage Unit Protection Utility Shielding Weapon Grenade Launcher Energy Gun EM Pulse Gun Energy Cannon Light EM Pulse Cannon Ballistic Cannon Light Cannon Launcher Grenade Launcher Build | -11 -10 -9 ------- Run | Scr Mat Mat Slots Evolved 2 | . . 2 Power . | . . . Propulsion . | . . . Utility 2 | . . 2 Weapon . | . . . Parts Attached 27 | 6 9 12 Power 3 | 1 1 1 Engine 3 | 1 1 1 Core . | . . . Reactor . | . . . Propulsion 6 | 2 1 3 Treads 6 | 2 1 3 Leg . | . . . Wheel . | . . . Hover . | . . . Flight . | . . . Utility 6 | 1 3 2 Device 1 | . . 1 Storage 3 | 1 2 . Processor . | . . . Hackware . | . . . Protection 2 | . 1 1 Artifact . | . . . Weapon 12 | 2 4 6 Energy Gun 7 | 2 2 3 Energy Cannon 2 | . . 2 Ballistic Gun . | . . . Ballistic Cannon 1 | . 1 . Launcher 2 | . 1 1 Special Weapon . | . . . Impact Weapon . | . . . Slashing Weapon . | . . . Piercing Weapon . | . . . Special Melee Weapon . | . . . Unidentified Prototypes . | . . . Parts Lost 7 | . . 7 Power 2 | . . 2 Propulsion 2 | . . 2 Utility . | . . . Weapon 3 | . . 3 Highest Loss Streak 5 | . . 5 Average Slot Usage (%) 96 | . 97 95 Engine 12 | . 14 9 Treads 24 | . 28 19 Device 3 | . . 11 Storage 21 | . 21 22 Protection 6 | . 4 11 Energy Gun 15 | . 18 10 Ballistic Cannon 2 | . . 4 Launcher 7 | . 8 4 Naked Turns . | . . . Heaviest Build 49 | 13 45 49 Greatest Support 40 | 40 40 40 Greatest Overweight (x) 2 | . 1 2 Average Overweight (x) . | . . 1 Largest Inventory Capacity 16 | 6 16 16 Average Capacity 12 | 5 11 16 Most Carried 16 | 6 16 16 Average Carried 10 | 3 7 15 Final Capacity 16 | 6 16 16 Final Carried 16 | 4 16 15 Class Distribution -------------------- 100% | Mutant Dominant Class ---------------- Mutant | -10/Materials Mutant | -9/Materials Resources | -11 -10 -9 ----------- Run | Scr Mat Mat Matter Collected 726 | 236 128 362 Remotely . | . . . Salvage Created 1099 | . 453 646 Parts 70 | . 25 45 Haulers Intercepted 2 | . 1 1 Recyclers Shooed 1 | . 1 . Parts Field Recycled . | . . . Retrieved Matter . | . . . Parts Self-Destructed . | . . . Prevented . | . . . Kills | -11 -10 -9 ------- Run | Scr Mat Mat Combat Hostiles Destroyed 23 | . 10 13 Guns 16 | . 8 8 Cannons 2 | . . 2 AOE 5 | . 2 3 Classes Destroyed 10 | . 5 5 Worker 5 | . 1 4 Builder 2 | . . 2 Hauler 2 | . 1 1 Recycler 1 | . . 1 Operator 1 | . . 1 Watcher 3 | . 3 . Swarmer 6 | . 3 3 Grunt 12 | . 7 5 Brawler 1 | . . 1 Sentry 4 | . . 4 Best Kill Streak 7 | . 4 7 Combat Bots Only 5 | . 4 5 Max Kills in Single Turn 3 | . 2 3 Gunslinging 1 | . 1 1 Exploded 1 | . 1 1 Melee . | . . . Uniques/NPCs Destroyed . | . . . Combat | -11 -10 -9 -------- Run | Scr Mat Mat Damage Taken 1698 | . 503 1195 Core 538 | . 124 414 Absorbed by Shields . | . . . Core Remaining (%) 75 | 100 50 . Volleys Fired 81 | . 29 52 Largest 2 | . 2 2 Hottest 126 | . 100 126 Shots Fired 143 | . 54 89 Gun 98 | . 47 51 Cannon 20 | . . 20 Launcher 25 | . 7 18 Special . | . . . Kinetic 20 | . . 20 Thermal 79 | . 28 51 Explosive 25 | . 7 18 Electromagnetic 19 | . 19 . Robot Hit Streak 14 | . 14 13 Robot Miss Streak 3 | . 2 3 Penetration Max . | . . . Secondary Targets 3 | . 1 2 Max Gunslinging Chain 1 | . 1 1 Shots Hit Robots 90 | . 33 57 Core Hits 54 | . 21 33 Critical Hits . | . . . Critical Kills . | . . . Critical Parts Destroyed . | . . . Melee Attacks . | . . . Impact . | . . . Slashing . | . . . Piercing . | . . . Sneak Attacks . | . . . Combat Hostiles . | . . . Follow-up Attacks . | . . . Damage Inflicted 2231 | . 682 1549 Guns 918 | . 420 498 Cannons 257 | . . 257 Explosions 1056 | . 262 794 Melee . | . . . Ramming . | . . . Kinetic 257 | . . 257 Thermal 823 | . 325 498 Explosive 955 | . 161 794 Electromagnetic 196 | . 196 . Impact . | . . . Slashing . | . . . Piercing . | . . . Highest Corruption 3 | . 3 . Average Corruption 2 | . 2 . Corruption Purged . | . . . Effects 1 | . 1 . Matter Fused 1 | . 1 . Overload Shots . | . . . Overflow Damage 20 | . . 20 Projectiles 15 | . . 15 Explosions 5 | . . 5 Melee . | . . . Knockbacks 1 | . . 1 Impact . | . . . Kinetic 1 | . . 1 Secondary . | . . . Self-Inflicted Damage 168 | . 18 150 Shots 8 | . 1 7 Rammed . | . . . Targets Rammed . | . . . Kicked . | . . . Crushed . | . . . Highest Temperature 722 | . 312 722 Average Temperature 162 | . 69 243 Received Heat Transfer 396 | . 93 303 Effects 26 | . . 26 Shutdowns 5 | . . 5 Energy Bleed 3 | . . 3 Interference 2 | . . 2 Matter Decay 1 | . . 1 Short Circuit 2 | . . 2 Damage (minor) 1 | . . 1 Damage (major) 10 | . . 10 Damage (core) 2 | . . 2 Siege Activations . | . . . Robots Corrupted . | . . . Combat Hostiles . | . . . Parts Fried . | . . . Impact Corruptions . | . . . Robots Melted . | . . . Combat Hostiles . | . . . Parts Melted 3 | . 2 1 Heat Transferred 1889 | . 816 1073 Parts Sabotaged . | . . . Parts Stolen . | . . . Parts Stripped . | . . . Power Chain Reactions 4 | . 4 . Missiles Intercepted . | . . . Alert | -11 -10 -9 ------- Run | Scr Mat Mat Peak Influence 323 | . 219 323 Average Influence 107 | . 89 154 Maximum Alert Level 1 | . 1 1 Low Security (%) 79 | 100 91 54 Level 1 20 | . 8 45 Level 2 . | . . . Level 3 . | . . . Level 4 . | . . . Level 5 . | . . . High Security . | . . . Max Security . | . . . Squads Dispatched 3 | . 2 1 Investigation 1 | . 1 . Extermination . | . . . Reinforcement 2 | . 1 1 Assault . | . . . Garrison . | . . . Intercept . | . . . Construction Impeded . | . . . Haulers Reinforced . | . . . Stealth | -11 -10 -9 --------- Run | Scr Mat Mat Distress Signals 2 | . 2 . Communications Jammed . | . . . Distress Signals . | . . . Times Spotted 37 | . 17 20 Peak Tracking Total 6 | . 6 5 Tactical Retreats 2 | . 1 1 Traps | -11 -10 -9 ------- Run | Scr Mat Mat Traps Triggered 4 | . 4 . Indirectly . | . . . Trap Hack Attempts . | . . . Triggered . | . . . Disarmed . | . . . Reprogrammed . | . . . Reused . | . . . Traps Extracted . | . . . Installed . | . . . Triggered . | . . . Machines | -11 -10 -9 ---------- Run | Scr Mat Mat Machines Disabled 4 | . 2 2 Max in Single Turn 1 | . 1 1 Machines Sabotaged . | . . . Garrisons Compromised . | . . . Overloaded Fab Kills . | . . . Fab Network Shutdowns . | . . . Hacking | -11 -10 -9 --------- Run | Scr Mat Mat Machines Accessed 8 | . 6 2 Terminals 6 | . 5 1 Fabricators . | . . . Repair Stations . | . . . Recycling Units 1 | . 1 . Scanalyzers 1 | . . 1 Garrison Access . | . . . Total Hacks 17 | . 11 6 Successful 8 | . 6 2 Failed 9 | . 5 4 Catastrophic 2 | . 1 1 Database Lockouts . | . . . Manual 3 | . 1 2 Terminals 15 | . 10 5 Fabricators . | . . . Repair Stations . | . . . Recycling Units 1 | . 1 . Scanalyzers 1 | . . 1 Garrison Access . | . . . Terminal Hacks 7 | . 5 2 Prototype ID Bank 2 | . 2 . Alert Level 1 | . 1 . Locate Traps 1 | . . 1 Transport Status 1 | . 1 . Zone Layout 2 | . 1 1 Fabricator Hacks . | . . . Repair Station Hacks . | . . . Recycling Unit Hacks 1 | . 1 . Retrieve Components 1 | . 1 . Scanalyzer . | . . . Garrison Access Hacks . | . . . Unauthorized Hacks . | . . . Terminals . | . . . Fabricators . | . . . Repair Stations . | . . . Recycling Units . | . . . Scanalyzers . | . . . Garrison Access . | . . . Data Cores Recovered . | . . . Used . | . . . Hacking Detections 7 | . 5 2 Full Trace Events . | . . . Feedback Events . | . . . Feedback Blocked . | . . . Robot Schematics Acquired . | . . . Robots Built . | . . . Matter . | . . . Time . | . . . Total Robot Build Rating . | . . . Part Schematics Acquired . | . . . Parts Built . | . . . Matter . | . . . Time . | . . . Total Part Build Rating . | . . . Parts Repaired . | . . . Time . | . . . Parts Recycled . | . . . Recycled Matter . | . . . Retrieved Matter . | . . . Retrieved Components 10 | . 10 . Parts Scanalyzed . | . . . Part Schematics Acquired . | . . . Parts Damaged . | . . . Bothacking | -11 -10 -9 ------------ Run | Scr Mat Mat Used RIF Installer . | . . . Robots Hacked . | . . . Non-combat . | . . . Combat . | . . . Robot Hacks Applied . | . . . Relay Couplers Released . | . . . Robots Rewired . | . . . Allies Hacked . | . . . Hacks Repelled . | . . . Allies | -11 -10 -9 -------- Run | Scr Mat Mat Total Allies . | . . . Largest Group . | . . . Highest-Rated Group . | . . . Highest-Rated Ally . | . . . Total Orders . | . . . Ally Attacks . | . . . Total Damage . | . . . Kills . | . . . Allies Corrupted . | . . . Allies Melted . | . . . Intel | -11 -10 -9 ------- Run | Scr Mat Mat Robot Analysis Total . | . . . Derelict Logs Recovered . | . . . Drone Launches . | . . . Drone Recoveries . | . . . Exploration | -11 -10 -9 ------------- Run | Scr Mat Mat Turns Passed 1592 | 69 995 528 Spaces Moved 689 | 37 474 178 Core 5 | 5 . . Treads 684 | 32 474 178 Legs . | . . . Wheels . | . . . Hover . | . . . Flight . | . . . Fastest Speed 50 | 50 160 180 Average Speed 173 | 145 170 187 Slowest Speed 210 | 160 180 210 Overloaded Moves . | . . . Propulsion Burnouts . | . . . Robots Hopped . | . . . Cave-ins Triggered 1 | . 1 . Exploration Rate (%) 37 | 4 81 27 Regions Visited 2 Branch Regions . Pre-discovered Areas . | . . . Known Exits Taken . | . . . Unknown Exits Taken 2 | 1 1 . Scrap Searched . | . . . Spaces Dug . | . . . Terrain Destroyed 132 | . 55 77 Melee . | . . . Projectile . | . . . AOE 132 | . 55 77 Actions | -11 -10 -9 --------- Run | Scr Mat Mat Total 945 | 52 610 283 Wait 74 | . 50 24 Move 687 | 36 473 178 Hop . | . . . Pick Up 52 | 10 31 11 Fast Attach . | . . . Attach 14 | 6 1 7 Detach . | . . . Swap 13 | . 8 5 Drop 24 | . 18 6 Fire 81 | . 29 52 Melee . | . . . Ram . | . . . Kick . | . . . Crush . | . . . Escape Stasis . | . . . Rewire . | . . . Trap . | . . . Miscellaneous . | . . . Route ------- -11/Scrapyard -10/Materials (discovered 4 exits: *Mat x2 / [*Min x2]) -9/Materials (discovered 1 exit: [*Min]) History --------- Turn | Location | Event 2 | -11/Scrapyard | Met Revision 17 31 | -11/Scrapyard | Discovered new exit (range 15) 70 | -11/Scrapyard | Entered Materials 251 | -10/Materials | Discovered new exit (range 13) 312 | -10/Materials | Build established: Mutant 365 | -10/Materials | Discovered new exit (range 12) 417 | -10/Materials | Discovered new exit (range 15) 530 | -10/Materials | Crushed by falling debris 979 | -10/Materials | Discovered new exit (range 15) 1065 | -10/Materials | Entered another Materials area 1065 | -9/Materials | Evolved 2 slots: Utility x2 1213 | -9/Materials | Discovered new exit (range 16) 1566 | -9/Materials | Core integrity fell below 50% 1593 | -9/Materials | Destroyed by exploding Nuclear Reactor Last Messages --------------- 01576_ Overheating: System interference. 01576_ Electrolaser temporarily disabled. 01577_ K-01 Serf collects debris. 01581_ Overheating: Lrg. Storage Unit damaged (-19). 01582_ Acquired Flight Unit. 01582_ Electrolaser destroyed. 01583_ Overheating: Imp. Ion Engine damaged (-10). 01583_ Overheating: Electrolaser damaged (-9). 01583_ Overheating: Broken Arm. Treads damaged (-59). 01583_ Overheating: Arm. Treads damaged (-51). 01583_ Electrolaser destroyed. 01584_ K-01 Serf destroyed. 01584_ Terminal disabled. 01589_ Overheating: Matter decay (-52). 01590_ Power failure, Imp. Ion Engine shutdown. 01590_ G-47 Trooper destroyed. 01591_ Imp. Ion Engine destroyed. 01592_ Arm. Treads destroyed. 01592_ Destroyed Arm. Treads. 01593_ Nuclear Reactor explodes. Map ----- +----------------------------------------------------+ | ?????????????????????????????????????????????????? | | ?????????????????????????????????????????????????? | | ?????????????????????????????????????????????????? | | ?????????????????????????????????????????????????? | | ?????????????????????????????????????????????????? | | ?????????????????????????????????????????????????? | | ?????????????????????????????????????????????????? | | ?????????????????????????????????????????????????? | | ?????????????????????????? ???????????????????? | | ?????????????????????????? ?????????????????? | | ?????????????????????????? "????????????????? | | ?????????????????????????? ""???????????????? | | ?????????????????????????? ""???????????????? | | ?????????????????????????? ???????????????? | | ?????????????????????????? ??? #??????????? | | ?????????????????????????? ""?? #??????????? | | ?????????????????????????? """ +??????????? | | ?????????????????????????? """ #??????????? | | ??????????????????????????# #??????????? | | ???????????????????????#### #??????????? | | ???????????????????????# " !// #??????????? | | ???????????????????##### // #??????????? | | ???????????????????#= [ ! / #??????????? | | ???????????????????# [g #??????????? | | ???? ????????????# [ ??????? | | ???# ????????????# @ ########?????????? | | ???# #???????????# = = #######???????????? | | ???# #???????????# [# # #???????????? | | ???# #???????????######## # #???????????? | | ???+ +?????????########## # %= #???????????? | | ???# #?????????# # * ""#???????????? | | ???# #?????????# += ""#???????????? | | ???# #?????????# # T"#???????????? | | ???# #?????????# ###+#### ""#???????????? | | ???# #?????????# # ## ""#???????????? | | ???# #?????????# #[[ ## #???????????? | | ???# ########### #[[ = ##########???????????? | | ???# # [%!##????????????????????? | | ???# + ! #?????????????????????? | | ???# # "Y" #?????????????????????? | | ???# ################# """ #?????????????????????? | | ???# #???#####???????#######?????????????????????? | | ???# #?### # ###???##????????????????????????????? | | ???#"### ######## ##########???????????????????? | | ####%####### ##### ####????????????????? | | #"%^^^ ???????????????? | | "" # ! [ ! = < ???????????????? | | + = *= |* ???????????????? | | "" # ### ###* ** #####" "#???????????????????? | | # ###+####[[!## ##??!"! "#???????????????????? | +----------------------------------------------------+ Best States ------------- Heat Dissipation 28 Energy Generation 12 Energy Capacity 265 Matter Stores 300 Matter Capacity 300 Sight Range 16 Terrain Scan Density 10 Armor Coverage 150 Utility Shielding 33 Evasion (%) 40 Recoil Reduction 2 Item Schematics ----------------- None Robot Schematics ------------------ None Fabricated ------------ Nothing Alien Tech Used ----------------- None Achievements -------------- None Challenges ------------ None Game ------ Seed GuidanceFocalPick Manual? 0 Play Time 00:25:10 Cumulative 35.0 hours Start 2020.04.18 @ 20:02:34 End 2020.04.18 @ 20:35:08 Sessions 1 Manual Loads 0 Difficulty Rogue Special Mode None Game No. 52 Rogue 36 Adventurer 15 Explorer 1 Win Type - Total 0 Types 0/0/0/0/0/0/0 Lore% 17 Gallery% 30 Achievement% 29 Wizard Run 0 Options --------- ASCII 0 Keyboard 0 Movement Numpad Keybinds 0 Fullscreen 1 Font 32/SmallcapsGlow Map View 76x50 Tactical HUD 1 Map Filters NONE Filters NONE Steam 1 RUN: ef9b5660-fbb3-4108-8b86-733cff30aca1